Cogmind - Beta 15 @@@ ROGUE MODE // 2025.10.19 @ 17:41:16 Player: Finestep Result: Destroyed self with Grenade Launcher Performance ------------- Evolutions (0) 0 Regions Visited (3) 600 Robots Destroyed (41) 205 Value Destroyed (993) 993 Prototype IDs (0) 0 Alien Tech Used (0) 0 Bonus (70) 70 TOTAL SCORE: 1868 Bonus ------- Follower Combat Kills 70 Cogmind --------- Core Integrity 0/250 Matter 222/300 Energy 255/265 System Corruption 0% Temperature Cool (0) Movement Treading (160) Location -10/Subcaves Parts ------- > --- POWER (1) -------- Improved Ion Engine > --- PROPULSION (2) --- Improved Treads Spiked Treads > --- UTILITY (2) ------ Disposable Heat Sink Large Storage Unit > --- WEAPON (2) ------- Particle Gun Grenade Launcher > --- INVENTORY (15) --- Improved Ion Engine Light Treads Improved Treads Improved Treads Improved Treads Armored Wheel Armored Wheel High-capacity Matter Pod (200) Utility Shielding Hacking Suite Tractor Beam Small Laser Mining Laser Peak State ------------ > --- POWER ------------ Improved Ion Engine > --- PROPULSION ------- Improved Treads Spiked Treads > --- UTILITY ---------- Disposable Heat Sink Large Storage Unit > --- WEAPON ----------- Particle Gun Grenade Launcher > --- INVENTORY -------- Improved Ion Engine Light Treads Improved Treads Improved Treads Improved Treads Armored Wheel Armored Wheel High-capacity Matter Pod Utility Shielding Hacking Suite Tractor Beam Small Laser Mining Laser [Rating: 14] Favorites ----------- Power Improved Ion Engine Engine Improved Ion Engine Propulsion Light Treads Treads Light Treads Leg Aluminum Leg Utility Disposable Heat Sink Device Disposable Heat Sink Storage Large Storage Unit Weapon Light Assault Rifle Energy Gun Small Laser Ballistic Gun Light Assault Rifle Ballistic Cannon Light Cannon Launcher Grenade Launcher Special Weapon Mining Laser Build | -11 -10 -10 -10 ------- Run | Yrd Mat Min Sub Slots Evolved . | . . . . Power . | . . . . Propulsion . | . . . . Utility . | . . . . Weapon . | . . . . Parts Attached 31 | 7 18 1 5 Power 3 | 1 2 . . Engine 3 | 1 2 . . Core . | . . . . Reactor . | . . . . Propulsion 10 | 2 6 . 2 Treads 5 | . 3 . 2 Leg 5 | 2 3 . . Wheel . | . . . . Hover . | . . . . Flight . | . . . . Utility 6 | 2 4 . . Device 3 | 1 2 . . Storage 3 | 1 2 . . Processor . | . . . . Hackware . | . . . . Protection . | . . . . Artifact . | . . . . Weapon 12 | 2 6 1 3 Energy Gun 6 | 1 3 . 2 Energy Cannon . | . . . . Ballistic Gun 2 | 1 . 1 . Ballistic Cannon 1 | . 1 . . Launcher 2 | . 1 . 1 Special Weapon 1 | . 1 . . Impact Weapon . | . . . . Slashing Weapon . | . . . . Piercing Weapon . | . . . . Special Melee Weapon . | . . . . Unidentified Prototypes . | . . . . Parts Lost 7 | . 5 . 2 Power . | . . . . Propulsion 2 | . 2 . . Utility 1 | . 1 . . Weapon 4 | . 2 . 2 Highest Loss Streak 2 | . 2 . 1 To Critical Strikes . | . . . . Average Backups 11 | 4 9 15 13 Power . | . 1 1 1 Propulsion 4 | 1 3 6 6 Utility 2 | . 1 4 4 Weapon 3 | 1 3 4 2 Tool/Special . | . . . . Unused Backups 12 | 1 1 . 10 Power 2 | . 1 . 1 Propulsion 5 | . . . 5 Utility 4 | . . . 4 Weapon 1 | 1 . . . Tool/Special . | . . . . Average Slot Usage (%) 99 | . 98 100 100 Engine 14 | . 14 14 14 Treads 19 | . 9 28 28 Leg 8 | . 17 . . Device 13 | . 13 14 14 Storage 14 | . 14 14 14 Energy Gun 10 | . 15 3 12 Ballistic Gun 8 | . 7 10 1 Ballistic Cannon 7 | . 3 14 3 Launcher 1 | . . . 10 Peak Build Rating 14 | 7 11 11 14 Average Rating 9 | 5 8 10 11 On Entrance 7 | . 7 11 11 Naked Turns . | . . . . Heaviest Build 34 | 14 32 32 34 Greatest Support 43 | 20 40 40 43 Greatest Overweight (x) 2 | 1 2 . . Average Overweight (x) . | . . . . Largest Inventory Capacity 15 | 8 15 15 15 Average Capacity 12 | 7 10 15 15 Most Carried 15 | 6 15 15 15 Average Carried 11 | 4 9 15 13 Final Capacity 15 | 8 15 15 15 Final Carried 15 | 5 15 15 13 Class Distribution -------------------- 91% | Mutant 8% | Scavenger-Mutant Dominant Class ---------------- Mutant | -10/Materials Mutant | -10/Mines Mutant | -10/Subcaves Resources | -11 -10 -10 -10 ----------- Run | Yrd Mat Min Sub Matter Collected 1042 | 231 589 107 115 Remotely . | . . . . Salvage Created 1167 | 155 740 182 90 Parts 63 | 7 38 10 8 Haulers Intercepted 2 | . 2 . . Recyclers Shooed 7 | 1 5 1 . Parts Field Recycled . | . . . . Retrieved Matter . | . . . . Parts Self-Destructed 8 | . . . 8 Prevented . | . . . . Kills | -11 -10 -10 -10 ------- Run | Yrd Mat Min Sub Combat Hostiles Destroyed 28 | . 19 5 4 Guns 15 | . 14 . 1 Cannons 2 | . . 2 . AOE 11 | . 5 3 3 Classes Destroyed 9 | 2 6 1 . Worker 2 | . . 2 . Builder 1 | . 1 . . Tunneler 5 | 5 . . . Hauler 2 | . 2 . . Recycler 2 | 1 . 1 . Operator 1 | . 1 . . Swarmer 6 | . 3 3 . Grunt 15 | . 13 2 . Subdweller 7 | . 3 . 4 Best Kill Streak 4 | 3 3 4 2 Combat Bots Only 3 | . 3 3 2 Max Kills in Single Turn 2 | 1 2 2 1 Gunslinging . | . . . . Exploded 2 | . 2 2 1 Melee . | . . . . Uniques/NPCs Destroyed . | . . . . Combat | -11 -10 -10 -10 -------- Run | Yrd Mat Min Sub Hostile Shots Fired 137 | . 94 8 35 Missed 43 | . 26 4 13 Hits 94 | . 68 4 22 Projectile 94 | . 68 4 22 AOE 3 | . . . 3 Critical Strikes 1 | . 1 . . Damage Taken 1628 | . 951 62 615 Core 255 | . 161 28 66 Absorbed by Shields . | . . . . Core Remaining (%) 100 | 100 . . . Volleys Fired 144 | 16 92 15 21 Largest 2 | 2 2 2 2 Hottest 100 | 70 100 70 95 Shots Fired 265 | 32 170 28 35 Gun 221 | 32 159 13 17 Cannon 26 | . 3 13 10 Launcher 17 | . 7 2 8 Special 1 | . 1 . . Kinetic 112 | 16 65 18 13 Thermal 128 | 16 90 8 14 Explosive 17 | . 7 2 8 Electromagnetic 8 | . 8 . . Robot Hit Streak 21 | 7 9 7 21 Robot Miss Streak 4 | 1 4 3 1 Penetration Max . | . . . . Secondary Targets 1 | . . . 1 Max Gunslinging Chain 1 | . . . 1 Shots Hit Robots 170 | 23 102 16 29 Core Hits 84 | 9 55 12 8 Critical Kills . | . . . . Critical Parts Destroyed . | . . . . Critical Strikes 9 | 2 5 1 1 Burn 8 | 2 5 . 1 Blast 1 | . . 1 . Melee Attacks . | . . . . Impact . | . . . . Slashing . | . . . . Piercing . | . . . . Sneak Attacks . | . . . . Combat Hostiles . | . . . . Follow-up Attacks . | . . . . Damage Inflicted 3013 | 240 1670 385 718 Guns 1567 | 240 1095 68 164 Cannons 311 | . 34 157 120 Explosions 1117 | . 533 150 434 Melee . | . . . . Ramming 18 | . 8 10 . Kinetic 746 | 104 326 180 136 Thermal 1110 | 136 781 45 148 Explosive 1074 | . 490 150 434 Electromagnetic 65 | . 65 . . Impact . | . . . . Slashing . | . . . . Piercing . | . . . . Highest Corruption . | . . . . Average Corruption . | . . . . Corruption Purged . | . . . . Corruption Blocked . | . . . . Overload Shots . | . . . . Overflow Damage 22 | . 16 6 . Projectiles . | . . . . Explosions 22 | . 16 6 . Melee . | . . . . Knockbacks 4 | . . 2 2 Impact . | . . . . Kinetic 4 | . . 2 2 Secondary . | . . . . Self-Inflicted Damage 43 | . 8 . 35 Shots 4 | . 2 . 2 Rammed 3 | . 1 2 . Targets Rammed 3 | . 1 2 . Kicked . | . . . . Crushed . | . . . . Highest Temperature 265 | 120 265 42 . Average Temperature 44 | 43 48 15 . Received Heat Transfer 504 | . 444 30 30 Siege Activations . | . . . . Martial Activations . | . . . . Shielding Activations . | . . . . Robots Disrupted . | . . . . Combat Hostiles . | . . . . Robots Corrupted . | . . . . Combat Hostiles . | . . . . Parts Fried . | . . . . Impact Corruptions . | . . . . Robots Melted . | . . . . Combat Hostiles . | . . . . Parts Melted 11 | 2 7 1 1 Heat Transferred 3550 | 555 2484 100 411 Parts Sabotaged . | . . . . Parts Stolen . | . . . . Parts Stripped . | . . . . Power Chain Reactions 1 | . 1 . . Alert | -11 -10 -10 -10 ------- Run | Yrd Mat Min Sub Maximum Alert Level . | . . . . Low Security (%) 100 | 100 100 100 . Level 1 . | . . . . Level 2 . | . . . . Level 3 . | . . . . Level 4 . | . . . . Level 5 . | . . . . High Security . | . . . . Max Security . | . . . . Peak Influence 163 | 10 163 121 . Initial 25 | . . 25 . Average 38 | 1 61 20 . Influence Increases 786 | 30 518 238 . Destroy 0b10 Robot/C 460 | . 320 140 . Destroy 0b10 Robot/NC 65 | 30 20 15 . Destroy Leader 124 | . 94 30 . Allied During Kill 26 | . . 26 . Successful Hack 21 | . 21 . . Disable Machine 45 | . 30 15 . Destroy Structure 45 | . 33 12 . Influence Decreases 786 | 30 452 304 . Entered New Map 41 | . . 41 . Time Decay 675 | 30 402 243 . Lost Part 50 | . 50 . . Lost Ally 20 | . . 20 . Squads Dispatched 5 | . 5 . . Investigation 2 | . 2 . . Extermination . | . . . . Reinforcement 3 | . 3 . . Assault . | . . . . Garrison . | . . . . Intercept . | . . . . Searches Triggered . | . . . . Construction Impeded . | . . . . Haulers Reinforced . | . . . . Active Scanning Responses . | . . . . Cargo Convoy Interrupts . | . . . . Stealth | -11 -10 -10 -10 --------- Run | Yrd Mat Min Sub Distress Signals 2 | . 2 . . Communications Jammed . | . . . . Distress Signals . | . . . . Times Spotted 45 | . 33 6 6 Peak Tracking Total 5 | . 5 2 3 Tactical Retreats 1 | . 1 . . Traps | -11 -10 -10 -10 ------- Run | Yrd Mat Min Sub Traps Triggered . | . . . . Indirectly . | . . . . Trap Hack Attempts . | . . . . Triggered . | . . . . Disarmed . | . . . . Reprogrammed . | . . . . Reused . | . . . . Traps Extracted . | . . . . Installed . | . . . . Triggered . | . . . . Machines | -11 -10 -10 -10 ---------- Run | Yrd Mat Min Sub Machines Disabled 3 | . 2 1 . Max in Single Turn 2 | . 2 1 . Machines Repaired . | . . . . Machines Dismantled . | . . . . Machines Sabotaged . | . . . . Overloaded Fab Kills . | . . . . Hacking | -11 -10 -10 -10 --------- Run | Yrd Mat Min Sub Machines Accessed 4 | . 4 . . Terminals 4 | . 4 . . Fabricators . | . . . . Repair Stations . | . . . . Recycling Units . | . . . . Scanalyzers . | . . . . Garrison Access . | . . . . Total Hacks 12 | . 12 . . Successful 4 | . 4 . . Failed 8 | . 8 . . Catastrophic 1 | . 1 . . Database Lockouts . | . . . . Manual 6 | . 6 . . Terminals 12 | . 12 . . Fabricators . | . . . . Repair Stations . | . . . . Recycling Units . | . . . . Scanalyzers . | . . . . Garrison Access . | . . . . Terminal Hacks 3 | . 3 . . Part Schematic 2 | . 2 . . Robot Analysis 1 | . 1 . . Fabricator Hacks . | . . . . Repair Station Hacks . | . . . . Recycling Unit Hacks . | . . . . Scanalyzer . | . . . . Garrison Access Hacks . | . . . . Unauthorized Hacks 1 | . 1 . . Terminals 1 | . 1 . . Track 1 | . 1 . . Fabricators . | . . . . Repair Stations . | . . . . Recycling Units . | . . . . Scanalyzers . | . . . . Garrison Access . | . . . . Data Cores Recovered . | . . . . Used . | . . . . Hacking Detections 4 | . 4 . . Full Trace Events 2 | . 2 . . Feedback Events . | . . . . Feedback Blocked . | . . . . Robot Schematics Acquired . | . . . . Robots Built . | . . . . Authchips . | . . . . Time . | . . . . Total Robot Build Rating . | . . . . Part Schematics Acquired 2 | . 2 . . Parts Built . | . . . . Authchips . | . . . . Time . | . . . . Total Part Build Rating . | . . . . Parts Repaired . | . . . . Time . | . . . . Parts Recycled . | . . . . Recycled Matter . | . . . . Retrieved Matter . | . . . . Retrieved Components . | . . . . Parts Scanalyzed . | . . . . Part Schematics Acquired . | . . . . Parts Damaged . | . . . . Bothacking | -11 -10 -10 -10 ------------ Run | Yrd Mat Min Sub Used RIF Installer . | . . . . Robots Hacked . | . . . . Non-combat . | . . . . Combat . | . . . . Robot Hacks Applied . | . . . . Relay Couplers Released . | . . . . Fabnet Peak Effective % . | . . . . Robots Rewired . | . . . . Allies Hacked . | . . . . Hacks Repelled . | . . . . Allies | -11 -10 -10 -10 -------- Run | Yrd Mat Min Sub Total Allies 3 | . . 3 . Largest Group 3 | . . 3 2 Highest-Rated Group 40 | . . 40 24 Highest-Rated Ally 16 | . . 16 16 Total Orders . | . . . . Ally Attacks 23 | . . 19 4 Total Damage 276 | . . 219 57 Kills 2 | . . 2 . Allies Corrupted . | . . . . Allies Melted . | . . . . Intel | -11 -10 -10 -10 ------- Run | Yrd Mat Min Sub Active Infowar (turns) 130 | 5 125 . . Seismic 130 | 5 125 . . Robot Analysis Total 1 | . 1 . . Derelict Logs Recovered 1 | . . 1 . Drone Launches . | . . . . Drone Recoveries . | . . . . Exploration | -11 -10 -10 -10 ------------- Run | Yrd Mat Min Sub Turns Passed 2635 | 170 1157 1087 221 Spaces Moved 1382 | 89 567 628 98 Core 7 | 7 . . . Treads 937 | . 211 628 98 Legs 438 | 82 356 . . Wheels . | . . . . Hover . | . . . . Flight . | . . . . Fastest Speed 50 | 50 120 160 160 Average Speed 153 | 121 149 160 160 Slowest Speed 260 | 190 260 160 160 Overloaded Moves . | . . . . Propulsion Burnouts . | . . . . Robots Hopped . | . . . . Potential Cave-ins . | . . . . Cave-ins Triggered . | . . . . Exploration Rate (%) 48 | 6 79 101 8 Regions Visited 3 Branch Regions 2 Pre-discovered Areas 1 | . . 1 . Known Exits Taken . | . . . . Unknown Exits Taken 3 | 1 1 1 . Scrap Searched 5 | . . 3 2 Spaces Dug 5 | . 1 . 4 Terrain Destroyed 64 | . 28 14 22 Melee . | . . . . Projectile 1 | . 1 . . AOE 63 | . 27 14 22 Terrain Rammed . | . . . . Walls Destroyed . | . . . . Machines Disabled . | . . . . Actions | -11 -10 -10 -10 --------- Run | Yrd Mat Min Sub Total 1645 | 119 714 683 129 Wait 41 | . 8 33 . Move 1379 | 88 566 627 98 Hop . | . . . . Pick Up 22 | 7 14 1 . Fast Attach 14 | 6 6 1 1 Attach 7 | 1 3 . 3 Detach 1 | . 1 . . Swap 19 | . 13 2 4 Drop 15 | 1 10 2 2 Fire 144 | 16 92 15 21 Melee . | . . . . Ram . | . . . . Kick . | . . . . Crush 3 | . 1 2 . Escape Stasis . | . . . . Rewire . | . . . . Trap . | . . . . Miscellaneous . | . . . . Route ------- -11/Scrapyard -10/Materials (discovered 4 exits: [*Mat x3] / [*Min]) -10/Mines (discovered 3 exits: [*Mat x2] / [*Sub]) -10/Subcaves History --------- Turn | Location | Event 7 | -11/Scrapyard | Discovered new exit (range 15) 171 | -11/Scrapyard | Entered Materials 301 | -10/Materials | Build established: Mutant 313 | -10/Materials | Discovered new exit (range 3) 382 | -10/Materials | Discovered new exit (range 8) 518 | -10/Materials | Discovered new exit (range 5) 671 | -10/Materials | Derelicts attacked the area 814 | -10/Materials | Core integrity fell below 50% 1009 | -10/Materials | Discovered new exit (range 6) 1328 | -10/Materials | Entered Mines 1329 | -10/Mines | Learned location of Storage (-8) 1354 | -10/Mines | Learned 2 Materials zone layouts 1455 | -10/Mines | Assisted by bots powering up and referring to "LRC-V3" 1640 | -10/Mines | Discovered new exit (range 9) 2146 | -10/Mines | Discovered new exit (range 5) 2383 | -10/Mines | Discovered new exit (range 6) 2415 | -10/Mines | Entered Subcaves 2415 | -10/Subcaves | Accompanied by 2 allies 2416 | -10/Subcaves | Approached by a straggling Scientist 2417 | -10/Subcaves | Ambushed by Subdwellers from Twisted Machinery 2427 | -10/Subcaves | Ambushed by Subdweller buried in earth 2454 | -10/Subcaves | Core integrity fell below 20% 2456 | -10/Subcaves | Lost 3 allies 2636 | -10/Subcaves | Destroyed self with Grenade Launcher Last Messages --------------- 02465_ Switching to secondary target: PW-OLC(R). 02473_ Subatomizers dissect the Aluminum Leg, destroying it. 02473_ Sub. Optics melted. 02473_ PW-OLC(R) destroyed. 02475_ Acquired 13 matter. 02478_ Dropped Sml. Laser. 02478_ Acquired Particle Gun. 02481_ Acquired 9 matter. 02485_ Subatomizers dissect the Sub. Laser. 02605_ Searching scrap... 02605_ Found Sub. Monowheel. 02605_ Found 31 Matter. 02606_ Acquired 31 matter. 02606_ Searching scrap... 02606_ Found Spk. Treads. 02606_ Found Sub. Optics. 02606_ Found 62 Matter. 02607_ Acquired 62 matter. 02612_ Dropped Lgt. Treads. 02633_ MO-EAW(R) suffers critical hit (Burn). Map ----- +----------------------------------------------------+ | ?????????????????????????????????????????????????? | | ?????????????????????????????????????????????????? | | ?????????????????????????????????????????????????? | | ?????????????????????????????????????????????????? | | ?????????????????????????????????????????????????? | | ?????????????????????????????????????????????????? | | ?????????????????????????????????????????????????? | | ?????????????????????????????????????????????????? | | ?????????????????????????????????????????????????? | | ?????????????????????????????????????????????????? | | ?????????????????????????????????????????????????? | | ?????????????????????????????????????????????????? | | ???????????????????????????????##????????????????? | | ?????????????????????????#??# ????????????????? | | ????????????????????????? ## #????????????????? | | ????????????????????????? ?????????????????? | | ????????????????????????? #?????????????????? | | ????????????????????????# #?????????????????? | | ???????????????????????? #?????????????????? | | ???????????????????????? # #?????????????????? | | ??????????????????????### #?????????????????? | | ?????????????????????## ??????????????????? | | ?????????????????????# #????#??????????????? | | ?????????????????????# #???? ??????????????? | | ?????????????????????# ##??? ?????????????? | | ?????????????????????# @ ##?? ?????????????? | | ????????????????????# #?? %?????????????? | | ????????????????????# ### ???????????? | | ?????????????????#### ## ??????????? | | ????????????????##& < R ??????????? | | ????????????????#"&# ??????????? | | ????????????????#==# %## # ##???????????? | | ????????????????#!"# #< % % ### #####??????????? | | #####???????????# #### ### # #??????????? | | ###?????????###?# % # #??????????? | | # #?????????????# ####### #??????????? | | % #?????????????# ##????# #??????????? | | #?????????????## #?????# #??????????? | | #????????????## ####### ##??????????? | | ##???######### ## # ##???????????? | | ##### # # #????????????? | | ## #????????????? | | # ## ####### #????????????? | | # ### ## # ########?????#####????????????? | | ####?### # #########?????????????????????????????? | | ???????#####?????????????????????????????????????? | | ?????????????????????????????????????????????????? | | ?????????????????????????????????????????????????? | | ?????????????????????????????????????????????????? | | ?????????????????????????????????????????????????? | +----------------------------------------------------+ Best States ------------- Heat Dissipation 35 Coolant Potential 50 Energy Generation 12 Energy Capacity 265 Matter Stores 300 Matter Capacity 300 Sight Range 16 Terrain Scan Density 10 Evasion (%) 55 Recoil Reduction 2 Item Schematics ----------------- Lrg. Storage Unit | -10/Materials | Hacked Hcp. Storage Unit | -10/Materials | Hacked Robot Schematics ------------------ None Fabricated ------------ Nothing Repaired ---------- Nothing Alien Tech Used ----------------- None Achievements -------------- None Challenges ------------ None Game ------ Seed AmuletCobblerSplitter Manual? 0 Play Time 00:13:33 Cumulative 720.2 hours Start 2025.10.19 @ 17:27:54 End 2025.10.19 @ 17:41:16 Sessions 1 Manual Loads 0 Difficulty Rogue Special Mode None Game No. 454 Rogue 454 Adventurer 0 Explorer 0 Win Type - Total 10 Types 7/0/1/1/1/0/0/0/0/0 Lore% 76 Gallery% 79 Achievement% 75 Wizard Run 0 Options --------- Layout 0 ASCII 0 Keyboard 0 Movement Mouse Keybinds 1 Fullscreen 2 Font 24/Smallcaps Map View 76x50 Zoom Use 0% Tactical HUD 1 Map Filters NONE Filters NONE Steam 1 RUN: 9d75fc75-c0fa-4cb9-ad1c-3342b17ae9f2